[Event "Live Chess"]
[Site "Chess.com"]
[Date "2023.05.21"]
[Round "-"]
[White "SupremeTactician"]
[Black "KeithArkell"]
[Result "0-1"]
[WhiteElo "2210"]
[BlackElo "2490"]
[TimeControl "300"]
[EndTime "6:53:06 PDT"]
[Termination "KeithArkell won by resignation"]

1. e4 {[%clk 0:04:58.3]} 1... c6 {[%clk 0:04:58.3]} 2. d4 {[%clk 0:04:56.9]}
2... d5 {[%clk 0:04:57.5]} 3. exd5 {[%clk 0:04:54.1]} 3... cxd5 {[%clk
0:04:56.7]} 4. Bd3 {[%clk 0:04:54]} 4... Nf6 {[%clk 0:04:55.8]} 5. c3 {[%clk
0:04:53.9]} 5... Nc6 {[%clk 0:04:55]} 6. Ne2 {[%clk 0:04:53.2]} 6... Bg4 {[%clk
0:04:53.5]} 7. O-O {[%clk 0:04:51.9]} 7... Bxe2 {[%clk 0:04:52.6]} 8. Qxe2
{[%clk 0:04:50.3]} 8... e6 {[%clk 0:04:52.1]} 9. Bg5 {[%clk 0:04:48.6]} 9... Be7
{[%clk 0:04:51.2]} 10. f4 {[%clk 0:04:47.2]} 10... g6 {[%clk 0:04:49.8]} 11. Bh4
{[%clk 0:04:45.1]} 11... O-O {[%clk 0:04:48.2]} 12. Nd2 {[%clk 0:04:43.5]} 12...
Ne8 {[%clk 0:04:46.1]} 13. Bf2 {[%clk 0:04:41.3]} 13... Nd6 {[%clk 0:04:43.8]}
14. Rac1 {[%clk 0:04:39.1]} 14... Qd7 {[%clk 0:04:42.3]} 15. b3 {[%clk
0:04:38.1]} 15... f5 {[%clk 0:04:41.1]} 16. Nf3 {[%clk 0:04:36.7]} 16... Ne4
{[%clk 0:04:40.1]} 17. Be3 {[%clk 0:04:11.3]} 17... a6 {[%clk 0:04:38]} 18. Rfe1
{[%clk 0:04:06.4]} 18... b5 {[%clk 0:04:36.8]} 19. g3 {[%clk 0:04:02.2]} 19...
Rfc8 {[%clk 0:04:33.4]} 20. Kg2 {[%clk 0:03:58.6]} 20... Bf6 {[%clk 0:04:29.7]}
21. Ne5 {[%clk 0:03:55.4]} 21... Nxe5 {[%clk 0:04:26.7]} 22. fxe5 {[%clk
0:03:53.4]} 22... Bg7 {[%clk 0:04:24]} 23. Bxe4 {[%clk 0:03:51.8]} 23... dxe4
{[%clk 0:04:22.7]} 24. c4 {[%clk 0:03:48]} 24... Rc7 {[%clk 0:04:19.8]} 25. Red1
{[%clk 0:03:41.8]} 25... Rac8 {[%clk 0:04:18.4]} 26. Bf4 {[%clk 0:03:23.7]}
26... h6 {[%clk 0:04:12.7]} 27. h4 {[%clk 0:03:21.4]} 27... Kh7 {[%clk
0:04:10.2]} 28. d5 {[%clk 0:03:18.5]} 28... bxc4 {[%clk 0:04:06.2]} 29. dxe6
{[%clk 0:03:08.3]} 29... Qxe6 {[%clk 0:03:59.5]} 30. Rd6 {[%clk 0:03:05]} 30...
Qe8 {[%clk 0:03:51.9]} 31. bxc4 {[%clk 0:02:54.8]} 31... Bxe5 {[%clk 0:03:46.5]}
32. Bxe5 {[%clk 0:02:54.7]} 32... Qxe5 {[%clk 0:03:45.3]} 33. Rxa6 {[%clk
0:02:52.8]} 33... e3 {[%clk 0:03:36.4]} 34. a4 {[%clk 0:02:47]} 34... Qe4+
{[%clk 0:03:35.2]} 35. Kh2 {[%clk 0:02:45.5]} 35... Rxc4 {[%clk 0:03:29.1]} 0-1

[Event "Live Chess"]
[Site "Chess.com"]
[Date "2023.05.21"]
[Round "-"]
[White "shohrehbayat"]
[Black "Duke_of_Bebington"]
[Result "1-0"]
[WhiteElo "2043"]
[BlackElo "1539"]
[TimeControl "300"]
[EndTime "6:53:08 PDT"]
[Termination "shohrehbayat won by checkmate"]

1. e4 {[%clk 0:04:58.8]} 1... e5 {[%clk 0:04:58.2]} 2. Bc4 {[%clk 0:04:56.9]}
2... Nf6 {[%clk 0:04:55.3]} 3. d3 {[%clk 0:04:56.1]} 3... Nc6 {[%clk 0:04:53.7]}
4. Nf3 {[%clk 0:04:55.2]} 4... Be7 {[%clk 0:04:51.2]} 5. Nc3 {[%clk 0:04:52.8]}
5... O-O {[%clk 0:04:50.1]} 6. O-O {[%clk 0:04:51.3]} 6... d6 {[%clk 0:04:48.4]}
7. Be3 {[%clk 0:04:48]} 7... Be6 {[%clk 0:04:47.5]} 8. Bb3 {[%clk 0:04:46.3]}
8... a6 {[%clk 0:04:40.8]} 9. d4 {[%clk 0:04:44.8]} 9... exd4 {[%clk 0:04:38.1]}
10. Nxd4 {[%clk 0:04:44.7]} 10... Nxd4 {[%clk 0:04:31.3]} 11. Bxd4 {[%clk
0:04:42.2]} 11... Bxb3 {[%clk 0:04:28.3]} 12. axb3 {[%clk 0:04:40.8]} 12... Qd7
{[%clk 0:04:21.6]} 13. f4 {[%clk 0:04:37]} 13... Rfe8 {[%clk 0:04:15.4]} 14. e5
{[%clk 0:04:32.5]} 14... dxe5 {[%clk 0:04:14.5]} 15. fxe5 {[%clk 0:04:32.4]}
15... Nd5 {[%clk 0:04:13.4]} 16. Qf3 {[%clk 0:04:21.5]} 16... Nxc3 {[%clk
0:04:01.8]} 17. Qxf7+ {[%clk 0:04:20.2]} 17... Kh8 {[%clk 0:04:01.1]} 18. Bxc3
{[%clk 0:04:18.7]} 18... Rf8 {[%clk 0:03:59.3]} 19. Qxg7+ {[%clk 0:04:04.8]}
19... Kxg7 {[%clk 0:03:57.5]} 20. e6+ {[%clk 0:04:04.2]} 20... Kh6 {[%clk
0:03:55.9]} 21. exd7 {[%clk 0:04:02.3]} 21... Rad8 {[%clk 0:03:54.6]} 22. Rxf8
{[%clk 0:03:57.4]} 22... Bxf8 {[%clk 0:03:54.5]} 23. Rf1 {[%clk 0:03:38.7]}
23... Bd6 {[%clk 0:03:53.1]} 24. Rf7 {[%clk 0:03:35.7]} 24... Kg6 {[%clk
0:03:29.7]} 25. Rg7+ {[%clk 0:03:34.2]} 25... Kh6 {[%clk 0:03:28]} 26. g4 {[%clk
0:03:29.4]} 26... Bf8 {[%clk 0:03:19.3]} 27. Rf7 {[%clk 0:03:21.5]} 27... Kg6
{[%clk 0:03:12.7]} 28. Rf6+ {[%clk 0:02:50.5]} 28... Kg5 {[%clk 0:03:10.8]} 29.
h3 {[%clk 0:02:45.5]} 29... Bg7 {[%clk 0:03:01.7]} 30. Rf5+ {[%clk 0:01:59.4]}
30... Kg6 {[%clk 0:02:58.1]} 31. Kf2 {[%clk 0:01:31.3]} 31... Rxd7 {[%clk
0:02:53.3]} 32. Bxg7 {[%clk 0:01:26.1]} 32... Kxg7 {[%clk 0:02:51.2]} 33. Ke3
{[%clk 0:01:25.2]} 33... Kg6 {[%clk 0:02:39.5]} 34. Rc5 {[%clk 0:01:16.3]} 34...
b6 {[%clk 0:02:36.3]} 35. Rc6+ {[%clk 0:01:13.4]} 35... Kg7 {[%clk 0:02:32.8]}
36. Kf4 {[%clk 0:01:11.5]} 36... h6 {[%clk 0:02:25.4]} 37. h4 {[%clk 0:01:10.9]}
37... Rf7+ {[%clk 0:02:23.1]} 38. Kg3 {[%clk 0:01:09.9]} 38... Re7 {[%clk
0:02:16.7]} 39. g5 {[%clk 0:01:09.1]} 39... hxg5 {[%clk 0:02:16.2]} 40. hxg5
{[%clk 0:01:09]} 40... Rd7 {[%clk 0:02:13.2]} 41. Kg4 {[%clk 0:01:08.3]} 41...
Re7 {[%clk 0:02:12.2]} 42. Kh5 {[%clk 0:01:07.6]} 42... Rd7 {[%clk 0:02:09.9]}
43. Kg4 {[%clk 0:01:06.6]} 43... Re7 {[%clk 0:02:08.4]} 44. Kf5 {[%clk
0:01:06.2]} 44... a5 {[%clk 0:02:04.2]} 45. c4 {[%clk 0:01:04.9]} 45... Rf7+
{[%clk 0:01:55.1]} 46. Kg4 {[%clk 0:01:03.6]} 46... Re7 {[%clk 0:01:51.8]} 47.
c5 {[%clk 0:01:02.7]} 47... b5 {[%clk 0:01:40.2]} 48. Ra6 {[%clk 0:01:00.4]}
48... a4 {[%clk 0:01:33.9]} 49. bxa4 {[%clk 0:00:57.9]} 49... Re4+ {[%clk
0:01:32.5]} 50. Kf5 {[%clk 0:00:56.3]} 50... Rxa4 {[%clk 0:01:27.3]} 51. Rc6
{[%clk 0:00:50.7]} 51... Ra7 {[%clk 0:01:20.3]} 52. b4 {[%clk 0:00:49.1]} 52...
Rb7 {[%clk 0:01:11.7]} 53. g6 {[%clk 0:00:48.3]} 53... Kf8 {[%clk 0:01:08.7]}
54. Rf6+ {[%clk 0:00:47.1]} 54... Kg7 {[%clk 0:01:07.6]} 55. Rf7+ {[%clk
0:00:46.5]} 55... Kg8 {[%clk 0:01:06.4]} 56. Kf6 {[%clk 0:00:46]} 56... Ra7
{[%clk 0:01:02.5]} 57. Re7 {[%clk 0:00:40.9]} 57... Ra6+ {[%clk 0:01:00.6]} 58.
Re6 {[%clk 0:00:40.3]} 58... Ra8 {[%clk 0:00:55.2]} 59. g7 {[%clk 0:00:39.2]}
59... Rd8 {[%clk 0:00:51.5]} 60. Re7 {[%clk 0:00:38.1]} 60... Rc8 {[%clk
0:00:49.9]} 61. Rf7 {[%clk 0:00:33.8]} 61... c6 {[%clk 0:00:44.5]} 62. Ke6
{[%clk 0:00:32.1]} 62... Re8+ {[%clk 0:00:34.6]} 63. Re7 {[%clk 0:00:31.4]}
63... Rd8 {[%clk 0:00:29.5]} 64. Rd7 {[%clk 0:00:30.4]} 64... Re8+ {[%clk
0:00:28.5]} 65. Kd6 {[%clk 0:00:29.9]} 65... Rc8 {[%clk 0:00:24.5]} 66. Rc7
{[%clk 0:00:29.1]} 66... Rd8+ {[%clk 0:00:23.3]} 67. Kxc6 {[%clk 0:00:28.4]}
67... Re8 {[%clk 0:00:22.5]} 68. Kxb5 {[%clk 0:00:27.6]} 68... Re6 {[%clk
0:00:20.3]} 69. c6 {[%clk 0:00:26.2]} 69... Re5+ {[%clk 0:00:17]} 70. Kb6 {[%clk
0:00:25.3]} 70... Re6 {[%clk 0:00:15.5]} 71. b5 {[%clk 0:00:24.5]} 71... Re5
{[%clk 0:00:14.5]} 72. Rd7 {[%clk 0:00:23.8]} 72... Re8 {[%clk 0:00:12.9]} 73.
c7 {[%clk 0:00:23.1]} 73... Rc8 {[%clk 0:00:11.6]} 74. Rd8+ {[%clk 0:00:22.5]}
74... Rxd8 {[%clk 0:00:11]} 75. cxd8=Q+ {[%clk 0:00:22]} 75... Kxg7 {[%clk
0:00:10.3]} 76. Qe7+ {[%clk 0:00:21]} 76... Kg6 {[%clk 0:00:09.6]} 77. Kc5
{[%clk 0:00:19.4]} 77... Kh5 {[%clk 0:00:08.6]} 78. b6 {[%clk 0:00:19.3]} 78...
Kg4 {[%clk 0:00:08.1]} 79. b7 {[%clk 0:00:19.2]} 79... Kg3 {[%clk 0:00:07.9]}
80. b8=Q+ {[%clk 0:00:18.9]} 80... Kf2 {[%clk 0:00:07.8]} 81. Qbf8+ {[%clk
0:00:18.3]} 81... Kg2 {[%clk 0:00:06.4]} 82. Qeg7+ {[%clk 0:00:18.2]} 82... Kh1
{[%clk 0:00:06.3]} 83. Qfh8# {[%clk 0:00:18.1]} 1-0

[Event "Live Chess"]
[Site "Chess.com"]
[Date "2023.05.21"]
[Round "-"]
[White "martinsmartin63"]
[Black "djw60"]
[Result "0-1"]
[WhiteElo "758"]
[BlackElo "2165"]
[TimeControl "300"]
[EndTime "6:53:21 PDT"]
[Termination "djw60 won by resignation"]

1. Nf3 {[%clk 0:04:54.9]} 1... d5 {[%clk 0:04:58.1]} 2. d4 {[%clk 0:04:51.8]}
2... Nf6 {[%clk 0:04:55.4]} 3. Bf4 {[%clk 0:04:49.3]} 3... c5 {[%clk 0:04:52.4]}
4. e3 {[%clk 0:04:47.6]} 4... Nc6 {[%clk 0:04:51]} 5. Bb5 {[%clk 0:04:44.2]}
5... Bd7 {[%clk 0:04:48]} 6. Ne5 {[%clk 0:04:40.2]} 6... Nxe5 {[%clk 0:04:45.9]}
7. Bxe5 {[%clk 0:04:37]} 7... Bxb5 {[%clk 0:04:44]} 8. Bxf6 {[%clk 0:04:34.6]}
8... gxf6 {[%clk 0:04:41.5]} 9. Nc3 {[%clk 0:04:31.1]} 9... Bc6 {[%clk
0:04:40.1]} 10. O-O {[%clk 0:04:28.2]} 10... e6 {[%clk 0:04:37.1]} 11. e4 {[%clk
0:04:24.1]} 11... dxe4 {[%clk 0:04:34.3]} 12. Re1 {[%clk 0:04:17.8]} 12... Qxd4
{[%clk 0:04:32.5]} 13. Qxd4 {[%clk 0:04:13.3]} 13... cxd4 {[%clk 0:04:30.8]} 14.
Nxe4 {[%clk 0:04:10]} 14... Bxe4 {[%clk 0:04:29.2]} 15. Rxe4 {[%clk 0:04:06.6]}
15... Rd8 {[%clk 0:04:26.9]} 16. Rd1 {[%clk 0:04:02.1]} 16... Bc5 {[%clk
0:04:25.2]} 17. c3 {[%clk 0:03:57.9]} 17... dxc3 {[%clk 0:04:22.5]} 18. Rxd8+
{[%clk 0:03:54.5]} 18... Kxd8 {[%clk 0:04:22.4]} 19. bxc3 {[%clk 0:03:49.6]}
19... Ke7 {[%clk 0:04:19.4]} 20. Rc4 {[%clk 0:03:42.7]} 20... Rd8 {[%clk
0:04:17.4]} 21. g3 {[%clk 0:03:39.2]} 21... b6 {[%clk 0:04:15.3]} 22. a4 {[%clk
0:03:34.1]} 22... Rd2 {[%clk 0:04:13.3]} 23. a5 {[%clk 0:03:28.9]} 23... Bxf2+
{[%clk 0:04:07.4]} 24. Kh1 {[%clk 0:03:24.7]} 24... Bc5 {[%clk 0:04:04.5]} 25.
axb6 {[%clk 0:03:17.4]} 25... axb6 {[%clk 0:04:03.4]} 26. Ra4 {[%clk 0:03:12.7]}
26... f5 {[%clk 0:04:00.9]} 27. Ra7+ {[%clk 0:03:09.7]} 27... Kf6 {[%clk
0:03:59.3]} 28. h4 {[%clk 0:03:03.4]} 28... h5 {[%clk 0:03:57.3]} 29. Ra4 {[%clk
0:02:58]} 29... Rc2 {[%clk 0:03:50.3]} 30. g4 {[%clk 0:02:55.2]} 30... fxg4
{[%clk 0:03:44.6]} 31. Rf4+ {[%clk 0:02:47.8]} 31... Kg6 {[%clk 0:03:42.8]} 32.
Rc4 {[%clk 0:02:39.2]} 32... f5 {[%clk 0:03:28]} 33. Ra4 {[%clk 0:02:28.4]}
33... e5 {[%clk 0:03:23]} 34. Ra3 {[%clk 0:02:10.5]} 34... Bxa3 {[%clk
0:03:18.7]} 0-1

[Event "Live Chess"]
[Site "Chess.com"]
[Date "2023.05.21"]
[Round "-"]
[White "MartinWalker4"]
[Black "Biranidun"]
[Result "0-1"]
[WhiteElo "2070"]
[BlackElo "2516"]
[TimeControl "300"]
[EndTime "6:53:36 PDT"]
[Termination "Biranidun won on time"]

1. e4 {[%clk 0:04:56.8]} 1... c5 {[%clk 0:04:59]} 2. Nf3 {[%clk 0:04:54.7]} 2...
g6 {[%clk 0:04:58.6]} 3. d4 {[%clk 0:04:51.3]} 3... cxd4 {[%clk 0:04:58.5]} 4.
Nxd4 {[%clk 0:04:50]} 4... Nf6 {[%clk 0:04:58]} 5. Nc3 {[%clk 0:04:44.9]} 5...
d6 {[%clk 0:04:57.5]} 6. Bb5+ {[%clk 0:04:42.8]} 6... Nbd7 {[%clk 0:04:55.9]} 7.
O-O {[%clk 0:04:40.6]} 7... Bg7 {[%clk 0:04:55.2]} 8. Qe2 {[%clk 0:04:32.6]}
8... O-O {[%clk 0:04:53.8]} 9. a4 {[%clk 0:04:28]} 9... a6 {[%clk 0:04:52.6]}
10. Bc4 {[%clk 0:04:26.2]} 10... Qc7 {[%clk 0:04:42.2]} 11. a5 {[%clk
0:04:09.3]} 11... Ne5 {[%clk 0:04:39.5]} 12. Bb3 {[%clk 0:04:07]} 12... Bd7
{[%clk 0:04:36.1]} 13. f4 {[%clk 0:03:56.3]} 13... Qc5 {[%clk 0:04:22.9]} 14.
fxe5 {[%clk 0:03:04.2]} 14... Qxd4+ {[%clk 0:04:21.8]} 15. Be3 {[%clk 0:03:03]}
15... Qxe5 {[%clk 0:04:21.3]} 16. Bf4 {[%clk 0:02:47]} 16... Qh5 {[%clk
0:04:20]} 17. Qxh5 {[%clk 0:02:38.7]} 17... Nxh5 {[%clk 0:04:19.9]} 18. Bg5
{[%clk 0:02:37.4]} 18... Nf6 {[%clk 0:03:54.6]} 19. Rad1 {[%clk 0:02:25.8]}
19... Bc6 {[%clk 0:03:51.8]} 20. Bxf6 {[%clk 0:02:19.7]} 20... Bxf6 {[%clk
0:03:50.7]} 21. Nd5 {[%clk 0:02:18.5]} 21... Bxd5 {[%clk 0:03:45.8]} 22. Bxd5
{[%clk 0:02:16.8]} 22... Rab8 {[%clk 0:03:38.7]} 23. c3 {[%clk 0:02:10]} 23...
Kg7 {[%clk 0:03:34.2]} 24. Rd3 {[%clk 0:02:02.6]} 24... e6 {[%clk 0:03:29.6]}
25. Ba2 {[%clk 0:02:00.1]} 25... Be5 {[%clk 0:03:28.4]} 26. Rdf3 {[%clk
0:01:55.2]} 26... Rbe8 {[%clk 0:03:12]} 27. h3 {[%clk 0:01:38.9]} 27... Re7
{[%clk 0:03:10]} 28. Kh1 {[%clk 0:01:32.9]} 28... Rc8 {[%clk 0:03:07.8]} 29. Rc1
{[%clk 0:01:22.2]} 29... Rec7 {[%clk 0:03:00.1]} 30. Rcf1 {[%clk 0:01:11.9]}
30... Rb8 {[%clk 0:02:57.4]} 31. Kg1 {[%clk 0:01:00.7]} 31... h5 {[%clk
0:02:55.1]} 32. Kh1 {[%clk 0:00:57.3]} 32... h4 {[%clk 0:02:51.5]} 33. Kg1
{[%clk 0:00:54.4]} 33... Bg3 {[%clk 0:02:50.3]} 34. Rd3 {[%clk 0:00:49.5]} 34...
Rc5 {[%clk 0:02:44.9]} 35. b4 {[%clk 0:00:46.5]} 35... Rc7 {[%clk 0:02:43.7]}
36. c4 {[%clk 0:00:43.7]} 36... b6 {[%clk 0:02:41.7]} 37. axb6 {[%clk
0:00:39.5]} 37... Rxb6 {[%clk 0:02:41.6]} 38. Rb1 {[%clk 0:00:31]} 38... Rcb7
{[%clk 0:02:40.2]} 39. Rdb3 {[%clk 0:00:25.7]} 39... Kf6 {[%clk 0:02:39.5]} 40.
b5 {[%clk 0:00:21.8]} 40... axb5 {[%clk 0:02:36.7]} 41. cxb5 {[%clk 0:00:20.1]}
41... Ke5 {[%clk 0:02:34.9]} 42. Rb4 {[%clk 0:00:14.4]} 42... Ra7 {[%clk
0:02:32]} 43. Bb3 {[%clk 0:00:11.4]} 43... Rc7 {[%clk 0:02:29.7]} 44. Bd1 {[%clk
0:00:09.2]} 44... Rc5 {[%clk 0:02:25.7]} 45. Be2 {[%clk 0:00:06.8]} 45... Rc2
{[%clk 0:02:24.3]} 46. Bd3 {[%clk 0:00:03.5]} 46... Rd2 {[%clk 0:02:23.3]} 47.
Bf1 {[%clk 0:00:00.5]} 47... Bf2+ {[%clk 0:02:22.2]} 0-1

[Event "Live Chess"]
[Site "Chess.com"]
[Date "2023.05.21"]
[Round "-"]
[White "FailsGambits"]
[Black "wadsy27"]
[Result "0-1"]
[WhiteElo "1330"]
[BlackElo "2554"]
[TimeControl "300"]
[EndTime "6:53:36 PDT"]
[Termination "wadsy27 won by resignation"]

1. e4 {[%clk 0:04:59.4]} 1... c5 {[%clk 0:04:58]} 2. Nf3 {[%clk 0:04:58.1]} 2...
e6 {[%clk 0:04:55.7]} 3. d4 {[%clk 0:04:57.5]} 3... cxd4 {[%clk 0:04:54.5]} 4.
Nxd4 {[%clk 0:04:57.4]} 4... Nc6 {[%clk 0:04:53.2]} 5. Nc3 {[%clk 0:04:55.6]}
5... Qc7 {[%clk 0:04:52]} 6. Be3 {[%clk 0:04:52.4]} 6... a6 {[%clk 0:04:50.7]}
7. Be2 {[%clk 0:04:49.4]} 7... Nf6 {[%clk 0:04:49.4]} 8. O-O {[%clk 0:04:45.9]}
8... Bb4 {[%clk 0:04:48.2]} 9. f3 {[%clk 0:04:32.5]} 9... d5 {[%clk 0:04:44.6]}
10. e5 {[%clk 0:04:02]} 10... Nxe5 {[%clk 0:04:42.4]} 11. Bf4 {[%clk 0:03:48.2]}
11... Bd6 {[%clk 0:04:38.6]} 12. Re1 {[%clk 0:03:22.8]} 12... Nxf3+ {[%clk
0:04:32.9]} 13. Bxf3 {[%clk 0:03:09.9]} 13... Bxf4 {[%clk 0:04:31.8]} 0-1

[Event "Live Chess"]
[Site "Chess.com"]
[Date "2023.05.21"]
[Round "-"]
[White "TheSmoulderingMaster"]
[Black "sup3rm0nk3y"]
[Result "1-0"]
[WhiteElo "1661"]
[BlackElo "1346"]
[TimeControl "300"]
[EndTime "6:53:46 PDT"]
[Termination "TheSmoulderingMaster won by resignation"]

1. e4 {[%clk 0:04:58.2]} 1... c5 {[%clk 0:04:58.5]} 2. Nf3 {[%clk 0:04:56.8]}
2... Nc6 {[%clk 0:04:57.4]} 3. d4 {[%clk 0:04:56]} 3... cxd4 {[%clk 0:04:56.1]}
4. Nxd4 {[%clk 0:04:55.3]} 4... d6 {[%clk 0:04:53.6]} 5. Nc3 {[%clk 0:04:53.5]}
5... Bd7 {[%clk 0:04:49.5]} 6. Be3 {[%clk 0:04:52.3]} 6... e5 {[%clk 0:04:46.4]}
7. Ndb5 {[%clk 0:04:50.2]} 7... a6 {[%clk 0:04:44.1]} 8. Nxd6+ {[%clk
0:04:48.7]} 8... Bxd6 {[%clk 0:04:42.4]} 9. Qxd6 {[%clk 0:04:47.4]} 9... Nf6
{[%clk 0:04:37.6]} 10. Bg5 {[%clk 0:04:44.5]} 10... Nd4 {[%clk 0:04:22.7]} 11.
Nd5 {[%clk 0:04:41.1]} 11... Nxc2+ {[%clk 0:04:15.5]} 12. Kd2 {[%clk 0:04:37.5]}
12... Nxa1 {[%clk 0:04:09.1]} 13. Nc7+ {[%clk 0:04:33.8]} 13... Qxc7 {[%clk
0:03:56.3]} 14. Qxc7 {[%clk 0:04:32.4]} 14... Nxe4+ {[%clk 0:03:54.6]} 15. Ke3
{[%clk 0:04:29.2]} 15... Nxg5 {[%clk 0:03:45.4]} 16. Qxe5+ {[%clk 0:04:27.3]}
16... Ne6 {[%clk 0:03:42.2]} 17. Bc4 {[%clk 0:04:26.3]} 17... O-O {[%clk
0:03:37.8]} 18. Rxa1 {[%clk 0:04:23.1]} 18... Rfe8 {[%clk 0:03:35.3]} 19. Kd2
{[%clk 0:04:18.9]} 19... Rad8 {[%clk 0:03:32.8]} 20. Kc2 {[%clk 0:04:16.7]}
20... Nd4+ {[%clk 0:03:26.5]} 21. Qxd4 {[%clk 0:04:14.4]} 21... Ba4+ {[%clk
0:03:25.4]} 22. Kc3 {[%clk 0:04:07.2]} 22... Rxd4 {[%clk 0:03:24.5]} 23. Kxd4
{[%clk 0:04:06.4]} 23... g6 {[%clk 0:03:19.9]} 24. Rc1 {[%clk 0:03:58.6]} 24...
Re2 {[%clk 0:03:17.5]} 25. Bxe2 {[%clk 0:03:56.3]} 1-0

[Event "Live Chess"]
[Site "Chess.com"]
[Date "2023.05.21"]
[Round "-"]
[White "AbilifyXL"]
[Black "RichardABates"]
[Result "0-1"]
[WhiteElo "1966"]
[BlackElo "2141"]
[TimeControl "300"]
[EndTime "6:53:49 PDT"]
[Termination "RichardABates won by resignation"]

1. d4 {[%clk 0:04:57.9]} 1... Nf6 {[%clk 0:04:58.6]} 2. c4 {[%clk 0:04:53.4]}
2... e5 {[%clk 0:04:56.4]} 3. dxe5 {[%clk 0:04:49.3]} 3... Ne4 {[%clk 0:04:55]}
4. Nf3 {[%clk 0:04:48.4]} 4... d6 {[%clk 0:04:49.6]} 5. e3 {[%clk 0:04:47.3]}
5... Nc6 {[%clk 0:04:46.9]} 6. Be2 {[%clk 0:04:45.5]} 6... Bf5 {[%clk
0:04:41.8]} 7. Nbd2 {[%clk 0:04:41.3]} 7... dxe5 {[%clk 0:04:36.2]} 8. O-O
{[%clk 0:04:38.6]} 8... Be7 {[%clk 0:04:29.8]} 9. Nxe4 {[%clk 0:04:37.6]} 9...
Bxe4 {[%clk 0:04:26.6]} 10. Bd2 {[%clk 0:04:36.7]} 10... O-O {[%clk 0:04:24.4]}
11. Bc3 {[%clk 0:04:35.8]} 11... Bd6 {[%clk 0:04:16.9]} 12. Qd2 {[%clk
0:04:28.4]} 12... Bxf3 {[%clk 0:04:14.9]} 13. Bxf3 {[%clk 0:04:27.2]} 13... e4
{[%clk 0:04:13.8]} 14. Bg4 {[%clk 0:03:52.2]} 14... Qh4 {[%clk 0:04:08.5]} 15.
Bh3 {[%clk 0:03:50.8]} 15... Rad8 {[%clk 0:04:06.5]} 16. Qe2 {[%clk 0:03:49.5]}
16... Be5 {[%clk 0:04:02.9]} 17. Rac1 {[%clk 0:03:37.2]} 17... Bxc3 {[%clk
0:03:59.5]} 18. Rxc3 {[%clk 0:03:36.2]} 18... Ne5 {[%clk 0:03:58.4]} 19. Rcc1
{[%clk 0:03:24.4]} 19... Rd6 {[%clk 0:03:56.6]} 20. Rcd1 {[%clk 0:03:21.1]}
20... Rfd8 {[%clk 0:03:43.9]} 21. c5 {[%clk 0:03:16.9]} 21... Rd3 {[%clk
0:03:23.1]} 22. a3 {[%clk 0:02:40.2]} 22... h6 {[%clk 0:03:16]} 23. Bf5 {[%clk
0:02:31.9]} 23... g6 {[%clk 0:03:10.5]} 24. Bh3 {[%clk 0:01:45.6]} 24... R8d5
{[%clk 0:02:56.8]} 25. Bc8 {[%clk 0:01:07.2]} 25... b6 {[%clk 0:02:47.3]} 26.
cxb6 {[%clk 0:00:40.7]} 26... cxb6 {[%clk 0:02:39.9]} 27. Ba6 {[%clk 0:00:31]}
27... Nf3+ {[%clk 0:02:33.5]} 28. gxf3 {[%clk 0:00:26.4]} 28... Rg5+ {[%clk
0:02:27.3]} 29. Kh1 {[%clk 0:00:24.2]} 29... Rh5 {[%clk 0:02:26]} 0-1

[Event "Live Chess"]
[Site "Chess.com"]
[Date "2023.05.21"]
[Round "-"]
[White "Mugzwang"]
[Black "OleksiyJr1"]
[Result "0-1"]
[WhiteElo "1477"]
[BlackElo "1027"]
[TimeControl "300"]
[EndTime "6:54:04 PDT"]
[Termination "OleksiyJr1 won by resignation"]

1. Nf3 {[%clk 0:04:58.6]} 1... d5 {[%clk 0:04:54]} 2. c4 {[%clk 0:04:56.6]} 2...
Nc6 {[%clk 0:04:51.5]} 3. e3 {[%clk 0:04:49.5]} 3... dxc4 {[%clk 0:04:47.7]} 4.
Bxc4 {[%clk 0:04:47.8]} 4... Nf6 {[%clk 0:04:47.2]} 5. d4 {[%clk 0:04:40.2]}
5... e6 {[%clk 0:04:28.5]} 6. O-O {[%clk 0:04:34.3]} 6... Bd6 {[%clk 0:04:18.1]}
7. Nc3 {[%clk 0:04:21.9]} 7... Bd7 {[%clk 0:04:13.5]} 8. Nb5 {[%clk 0:04:10]}
8... Ne4 {[%clk 0:04:00.7]} 9. Qc2 {[%clk 0:03:51.4]} 9... f5 {[%clk 0:03:58.3]}
10. Nd2 {[%clk 0:03:20.6]} 10... Nxd2 {[%clk 0:03:38]} 11. Bxd2 {[%clk
0:03:19.4]} 11... a6 {[%clk 0:03:37.4]} 12. Nxd6+ {[%clk 0:03:17.4]} 12... cxd6
{[%clk 0:03:37.3]} 13. Qb3 {[%clk 0:03:15.2]} 13... b5 {[%clk 0:03:29.3]} 14.
Bxe6 {[%clk 0:03:13.7]} 14... Bxe6 {[%clk 0:03:21.5]} 15. Qxe6+ {[%clk
0:03:11.6]} 15... Qe7 {[%clk 0:03:21.1]} 16. Qxf5 {[%clk 0:03:05.8]} 16... Nd8
{[%clk 0:03:03.5]} 17. Rac1 {[%clk 0:02:57.8]} 17... Nf7 {[%clk 0:03:01.3]} 18.
Qf3 {[%clk 0:02:55.8]} 18... O-O {[%clk 0:02:56.7]} 19. Rc6 {[%clk 0:02:41.4]}
19... Nd8 {[%clk 0:02:51.5]} 20. Rc2 {[%clk 0:02:35.9]} 20... Rxf3 {[%clk
0:02:49.4]} 21. gxf3 {[%clk 0:02:30.9]} 21... Qf7 {[%clk 0:02:33.9]} 22. f4
{[%clk 0:02:26.6]} 22... Qg6+ {[%clk 0:02:31.6]} 0-1

[Event "Live Chess"]
[Site "Chess.com"]
[Date "2023.05.21"]
[Round "-"]
[White "Doge_Dandolo"]
[Black "JoeRoot66"]
[Result "0-1"]
[WhiteElo "1890"]
[BlackElo "1904"]
[TimeControl "300"]
[EndTime "6:54:04 PDT"]
[Termination "JoeRoot66 won by resignation"]

1. Nf3 {[%clk 0:04:53.1]} 1... Nf6 {[%clk 0:04:58.6]} 2. c4 {[%clk 0:04:52.2]}
2... e6 {[%clk 0:04:57.8]} 3. g3 {[%clk 0:04:50.1]} 3... d5 {[%clk 0:04:56.7]}
4. Bg2 {[%clk 0:04:48.2]} 4... Be7 {[%clk 0:04:55.3]} 5. O-O {[%clk 0:04:47.2]}
5... O-O {[%clk 0:04:55]} 6. d4 {[%clk 0:04:46.2]} 6... dxc4 {[%clk 0:04:54.6]}
7. Qc2 {[%clk 0:04:44.9]} 7... a6 {[%clk 0:04:50.5]} 8. a4 {[%clk 0:04:42.5]}
8... Bd7 {[%clk 0:04:47.8]} 9. Ne5 {[%clk 0:04:41.3]} 9... Bc6 {[%clk
0:04:47.7]} 10. Nxc6 {[%clk 0:04:38.9]} 10... Nxc6 {[%clk 0:04:46.8]} 11. Qxc4
{[%clk 0:04:38]} 11... Qxd4 {[%clk 0:04:43.6]} 12. Nd2 {[%clk 0:04:29.2]} 12...
Qxc4 {[%clk 0:04:39.2]} 13. Nxc4 {[%clk 0:04:27.6]} 13... Nd4 {[%clk 0:04:37.7]}
14. Re1 {[%clk 0:04:17.7]} 14... Nc2 {[%clk 0:04:36]} 0-1